fUST/lending_fUST_20251208
["ID","MTS","AMOUNT","RATE_DAILY","PERIOD"]
[396888939,1765125047299,-694.52314896,0.00010959,2]
[396888940,1765125047308,-694.52314896,0.00010959,2]
[396888942,1765125047317,-712.80007393,0.00010959,2]
[396888944,1765125047327,-712.80007393,0.00010959,2]
[396888946,1765125047337,-712.80007393,0.00010959,2]
[396888948,1765125047346,-712.80007393,0.00010959,2]
[396888950,1765125047354,-262.52291715,0.00010959,2]
[396892741,1765125090818,200.0,0.00020601,120]
[396895814,1765125124770,189.59,5.1e-05,2]
[396900654,1765125182647,154.52,5.1e-05,2]
[396901289,1765125244873,154.55,5.1e-05,2]
[396901326,1765125302713,154.52,5.1e-05,2]
[396901355,1765125365030,154.55,5.1e-05,2]
[396901369,1765125390737,200.0,0.00016513,120]
[396901389,1765125422151,154.52,5.1e-05,2]
[396901421,1765125486064,154.55,5.1e-05,2]
[396901447,1765125542264,154.52,5.1e-05,2]
[396901481,1765125605136,154.55,5.1e-05,2]
[396901540,1765125662275,154.52,5.1e-05,2]
[396901541,1765125725045,154.55,5.1e-05,2]
[396901561,1765125782550,154.52,5.1e-05,2]
[396901590,1765125845978,154.55,5.1e-05,2]
[396901634,1765125902823,154.52,5.1e-05,2]
[396901747,1765125965777,154.55,5.1e-05,2]
[396901761,1765126022484,154.52,5.1e-05,2]
[396901763,1765126041145,-154.52,6.9e-05,2]
[396901764,1765126041168,-420.0814905,7.35e-05,2]
[396901765,1765126041188,-5.96056439,7.8e-05,2]
[396901767,1765126086070,154.53,5.1e-05,2]
[396901770,1765126143740,154.52,5.1e-05,2]
[396901771,1765126147106,-154.52,7.3e-05,2]
[396901772,1765126147130,-151.07189484,7.8e-05,2]
[396901774,1765126159105,-58.96754077,7.8e-05,2]
[396901775,1765126159126,-415.0,9.313e-05,2]
[396901776,1765126159146,-495.69615878,9.35e-05,2]
[396901777,1765126159167,-154.52,9.6e-05,2]
[396901778,1765126159187,-399.31076779,9.605e-05,2]
[396901779,1765126159208,-300.0,9.797e-05,2]
[396901780,1765126159230,-12674.73523215,9.798e-05,2]
[396901781,1765126162121,-2643.52934159,9.798e-05,2]
[396901782,1765126170100,-9117.21212937,9.798e-05,2]
[396901790,1765126204757,154.53,5.1e-05,2]
[396901849,1765126232063,-154.53,8.1e-05,2]
[396901851,1765126232075,-300.0,9.797e-05,2]
[396901853,1765126232084,-174.77076944,9.797e-05,2]
[396901855,1765126232096,-56.22923056,9.797e-05,2]
[396901856,1765126232105,-3480.59121529,9.798e-05,2]
[396901857,1765126232115,-258.53364279,9.798e-05,2]
[396901858,1765126232124,-500.0,9.798e-05,2]
[396901859,1765126232133,-500.0,9.798e-05,2]
[396901860,1765126232141,-500.0,9.798e-05,2]
[396901861,1765126232150,-500.0,9.798e-05,2]
[396901862,1765126232159,-500.0,9.798e-05,2]
[396901863,1765126232168,-463.55646369,9.798e-05,2]
[396901864,1765126232177,-500.0,9.798e-05,2]
[396901865,1765126232186,-500.0,9.798e-05,2]
[396901866,1765126232196,-500.0,9.798e-05,2]
[396901867,1765126232205,-202.48944767,9.798e-05,2]
[396901870,1765126232219,-297.51055233,9.798e-05,2]
[396901872,1765126232228,-8648.98944767,9.799e-05,2]
[396902598,1765126240572,-324.35298941,9.799e-05,2]
[396902601,1765126240583,-1326.66510949,9.799e-05,2]
[396902748,1765126243700,-803.77226077,9.799e-05,2]
[396902750,1765126243712,-3060.99999998,9.799e-05,2]
[396902752,1765126243723,-832925.0237796,9.799e-05,2]
[396902754,1765126243736,-401.76593751,9.876e-05,2]
[396902756,1765126243747,-420.67042579,9.953e-05,2]
[396902759,1765126243757,-10000.0,0.0001,2]
[396902761,1765126243766,-420.67042583,0.0001,2]
[396902762,1765126243776,-151.0,0.0001,2]
[396902764,1765126243785,-420.67042579,0.00010006,2]
[396902767,1765126243795,-420.67042579,0.00010059,2]
[396902768,1765126243805,-300.0,0.00010096,2]
[396902771,1765126243815,-300.0,0.00010096,2]
[396902773,1765126243825,-300.0,0.00010096,2]
[396902775,1765126243834,-300.0,0.00010096,2]
[396902777,1765126243843,-300.0,0.00010096,2]
[396902779,1765126243853,-300.0,0.00010096,2]
[396902781,1765126243862,-300.0,0.00010096,2]
[396902783,1765126243871,-300.0,0.00010096,2]
[396902785,1765126243880,-300.0,0.00010096,2]
[396902787,1765126243889,-300.0,0.00010096,2]
[396902789,1765126243898,-300.0,0.00010096,2]
[396902791,1765126243907,-300.0,0.00010096,2]
[396902793,1765126243916,-300.0,0.00010096,2]
[396902795,1765126243925,-300.0,0.00010096,2]
[396902797,1765126243934,-300.0,0.00010096,2]
[396902799,1765126243943,-600.0,0.00010096,2]
[396902801,1765126243952,-420.67042579,0.00010112,2]
[396902803,1765126243961,-24105.0191338,0.00010212,2]
[396902805,1765126243971,-3809.9235555,0.00010212,2]
[396902807,1765126243980,-151.0,0.00010548,2]
[396902809,1765126243989,-407.0,0.00010777,2]
[396902811,1765126243998,-250.0,0.00010958,2]
[396902813,1765126244007,-500.0,0.00010959,2]
[396902815,1765126244017,-151.0,0.00010959,2]
[396902817,1765126244027,-209.97093,0.00010959,2]
[396902819,1765126244036,-151.0,0.00010959,2]
[396902821,1765126244045,-209.084817,0.00010959,2]
[396902823,1765126244054,-152.000343,0.00010959,2]
[396902825,1765126244063,-265.567741,0.00010959,2]
[396902827,1765126244075,-152.000343,0.00010959,2]
[396902829,1765126244086,-265.567741,0.00010959,2]
[396902831,1765126244095,-152.000343,0.00010959,2]
[396902833,1765126244105,-265.567741,0.00010959,2]
[396902835,1765126244115,-152.000343,0.00010959,2]
[396902837,1765126244125,-265.567741,0.00010959,2]
[396902839,1765126244134,-151.0,0.00010959,2]
[396902841,1765126244144,-1000.0,0.00010959,2]
[396902843,1765126244155,-1000.0,0.00010959,2]
[396902845,1765126244166,-1000.0,0.00010959,2]
[396902847,1765126244175,-1000.0,0.00010959,2]
[396902849,1765126244185,-222.928786,0.00010959,2]
[396902851,1765126244195,-151.0,0.00010959,2]
[396902853,1765126244206,-222.928786,0.00010959,2]
[396902855,1765126244215,-151.0,0.00010959,2]
[396902857,1765126244224,-222.928786,0.00010959,2]
[396902859,1765126244234,-222.928786,0.00010959,2]
[396902861,1765126244243,-175.843816,0.00010959,2]
[396902863,1765126244252,-175.843816,0.00010959,2]
[396902865,1765126244261,-474.009079,0.00010959,2]
[396902867,1765126244271,-612.87084878,0.00010959,2]
[396902870,1765126244280,-57.21958588,0.00010959,2]
[396902872,1765126244292,-392.82455677,0.00010959,2]
[396902874,1765126244303,-162.82670613,0.00010959,2]
[396902876,1765126244312,-282.17329387,0.00010959,2]
[396902878,1765126244324,-330.69755491,0.00010959,2]
[396902880,1765126244333,-172.62302963,0.00010959,2]
[396902883,1765126244350,-377.95093046,0.00010959,2]
[396902886,1765126244361,-62.29688869,0.00010959,2]
[396902888,1765126244370,-612.87084878,0.00010959,2]
[396902890,1765126244380,-612.87084878,0.00010959,2]
[396902892,1765126244389,-233.70999368,0.00010959,2]
[396903065,1765126246149,-379.1608551,0.00010959,2]
[396903067,1765126246161,-612.87084878,0.00010959,2]
[396903069,1765126246171,-612.87084878,0.00010959,2]
[396903071,1765126246181,-175.843816,0.00010959,2]
[396903073,1765126246190,-474.009079,0.00010959,2]
[396903075,1765126246200,-612.87084878,0.00010959,2]
[396903076,1765126246210,-612.87084878,0.00010959,2]
[396903078,1765126246220,-612.87084878,0.00010959,2]
[396903080,1765126246230,-612.87084878,0.00010959,2]
[396903083,1765126246241,-612.87084878,0.00010959,2]
[396903084,1765126246251,-612.87084878,0.00010959,2]
[396903087,1765126246263,-612.87084878,0.00010959,2]
[396903089,1765126246275,-612.87084878,0.00010959,2]
[396903091,1765126246286,-612.87084878,0.00010959,2]
[396903093,1765126246297,-612.87084878,0.00010959,2]
[396903094,1765126246307,-565.53606454,0.00010959,2]
[396903097,1765126246323,-47.33478424,0.00010959,2]
[396903099,1765126246333,-474.009079,0.00010959,2]
[396903101,1765126246343,-175.843816,0.00010959,2]
[396903103,1765126246353,-612.87084878,0.00010959,2]
[396903104,1765126246370,-474.009079,0.00010959,2]
[396903106,1765126246380,-151.0,0.00010959,2]
[396903133,1765126246615,-231.74843,0.00010959,2]
[396903136,1765126246647,-238.433094,0.00010959,2]
[396903138,1765126246657,-231.74843,0.00010959,2]
[396903140,1765126246667,-231.74843,0.00010959,2]
[396903142,1765126246677,-231.74843,0.00010959,2]
[396903144,1765126246687,-858.47748403,0.00010959,2]
[396903146,1765126246697,-858.47748403,0.00010959,2]
[396903148,1765126246707,-858.47748403,0.00010959,2]
[396903150,1765126246717,-858.47748403,0.00010959,2]
[396903152,1765126246726,-858.47748403,0.00010959,2]
[396903154,1765126246735,-858.47748403,0.00010959,2]
[396903156,1765126246745,-858.47748403,0.00010959,2]
[396903158,1765126246754,-858.47748403,0.00010959,2]
[396903160,1765126246763,-858.47748403,0.00010959,2]
[396903162,1765126246774,-1195.886773,0.00010959,2]
[396903164,1765126246783,-151.0,0.00010959,2]
[396903166,1765126246793,-1195.886773,0.00010959,2]
[396903168,1765126246804,-234.26739,0.00010959,2]
[396903170,1765126246813,-1195.886773,0.00010959,2]
[396903172,1765126246822,-1195.886773,0.00010959,2]
[396903174,1765126246832,-151.0,0.00010959,2]
[396903176,1765126246841,-151.0,0.00010959,2]
[396903178,1765126246850,-151.0,0.00010959,2]
[396903180,1765126246859,-151.0,0.00010959,2]
[396903182,1765126246869,-151.0,0.00010959,2]
[396903184,1765126246878,-151.0,0.00010959,2]
[396903186,1765126246888,-151.0,0.00010959,2]
[396903188,1765126246897,-248.014632,0.00010959,2]
[396903190,1765126246907,-248.014632,0.00010959,2]
[396903192,1765126246916,-450.836501,0.00010959,2]
[396903194,1765126246925,-151.0,0.00010959,2]
[396903196,1765126246935,-248.014632,0.00010959,2]
[396903198,1765126246944,-20.63674556,0.00010959,2]
[396909662,1765126384222,161.355817,4.853e-05,2]
[396910189,1765127230079,-327.0,6.065e-05,2]
[396910190,1765127230100,-300.0,6.065e-05,2]
[396910191,1765127230121,-397.47400841,6.065e-05,2]
[396910192,1765127230144,-203.0,6.066e-05,2]
[396910193,1765127230164,-161.355817,6.066e-05,2]
[396910194,1765127230183,-500.0,6.066e-05,2]
[396910195,1765127230203,-500.0,6.066e-05,2]
[396910196,1765127230222,-500.0,6.066e-05,2]
[396910197,1765127230242,-191.03511539,6.066e-05,2]
[396910223,1765127241090,-181.46272956,6.066e-05,2]
[396910420,1765127347115,-127.50215505,6.066e-05,2]
[396910421,1765127347136,-500.0,6.066e-05,2]
[396910423,1765127347156,-500.0,6.066e-05,2]
[396910424,1765127347176,-300.0,6.186e-05,2]
[396910425,1765127347197,-300.0,6.186e-05,2]
[396910426,1765127347219,-300.0,6.186e-05,2]
[396910427,1765127347246,-300.0,6.186e-05,2]
[396910428,1765127347269,-300.0,6.186e-05,2]
[396910429,1765127347291,-300.0,6.186e-05,2]
[396910430,1765127347312,-300.0,6.186e-05,2]
[396910431,1765127347333,-300.0,6.186e-05,2]
[396910432,1765127347354,-300.0,6.186e-05,2]
[396910433,1765127347374,-300.0,6.186e-05,2]
[396910434,1765127347394,-300.0,6.186e-05,2]
[396910435,1765127347414,-300.0,6.186e-05,2]
[396910436,1765127347434,-300.0,6.186e-05,2]
[396910437,1765127347458,-300.0,6.186e-05,2]
[396910438,1765127347480,-300.0,6.186e-05,2]
[396910439,1765127347498,-154.83203798,6.378e-05,2]
[396910440,1765127347516,-8661.6723376,6.379e-05,2]
[396910441,1765127347534,-203.9470019,6.893e-05,2]
[396910442,1765127347553,-161.355817,7.279e-05,2]
[396910443,1765127347571,-13756.9027742,7.41e-05,2]
[396910444,1765127347591,-600.0,7.558e-05,2]
[396910445,1765127347610,-469.01932992,8.065e-05,2]
[396910446,1765127347630,-720.0,8.313e-05,2]
[396910447,1765127347650,-422.022,8.313e-05,2]
[396910448,1765127347669,-1454.73444042,8.328e-05,2]
[396910450,1765127354078,-29623.27945958,8.328e-05,2]
[396910451,1765127354098,-161.355817,8.492e-05,2]
[396910452,1765127354120,-864.0,9.145e-05,2]
[396910453,1765127354140,-996.758,9.313e-05,2]
[396910454,1765127354160,-631.0,9.313e-05,2]
[396910455,1765127354184,-1726.9725968,9.313e-05,2]
[396910475,1765127360089,-428.0274032,9.313e-05,2]
[396910476,1765127360110,-415.0,9.313e-05,2]
[396910477,1765127360130,-301.80637562,9.595e-05,2]
[396910478,1765127360150,-191.93024187,9.695e-05,2]
[396910479,1765127360250,-38.05619093,9.695e-05,2]
[396910480,1765127360275,-39126.7360018,9.699e-05,2]
[396910481,1765127361108,-877.0309176,9.699e-05,2]
[396910705,1765127432223,-580.27463969,6.378e-05,2]
[396910707,1765127432233,-206.0,6.378e-05,2]
[396910708,1765127432243,-115.08178268,7.409e-05,2]
[396910709,1765127432255,-384.91821732,7.409e-05,2]
[396910711,1765127432265,-32.24681686,7.409e-05,2]
[396910712,1765127432277,-277.49482642,7.409e-05,2]
[396910714,1765127432289,-190.25835672,7.409e-05,2]
[396910715,1765127432299,-500.0,7.409e-05,2]
[396910716,1765127432308,-387.8308047,7.409e-05,2]
[396911212,1765127439035,-300.0,7.557e-05,2]
[396911214,1765127439045,-100.59033389,7.557e-05,2]
[396911216,1765127439057,-199.40966611,7.557e-05,2]
[396911218,1765127439067,-300.0,7.557e-05,2]
[396911220,1765127439077,-300.0,7.557e-05,2]
[396911222,1765127439086,-46.51076022,7.557e-05,2]
[396911226,1765127439114,-253.48923978,7.557e-05,2]
[396911227,1765127439123,-161.355817,9.706e-05,2]
[396911229,1765127439132,-431.8605213,9.706e-05,2]
[396911231,1765127439142,-606.03945648,9.857e-05,2]
[396911233,1765127439151,-6897.68576892,0.0001,2]
[396911252,1765127439326,-3102.31423108,0.0001,2]
[396911253,1765127439336,-151.0,0.0001,2]
[396911255,1765127439346,-540.56465143,0.00010065,2]
[396911258,1765127439355,-266.38662477,0.00010099,2]
[396911259,1765127439364,-500.0,0.00010099,2]
[396911261,1765127439374,-500.0,0.00010099,2]
[396911263,1765127439383,-329.08046403,0.00010099,2]
[396911265,1765127439392,-500.0,0.00010099,2]
[396911267,1765127439401,-500.0,0.00010099,2]
[396911269,1765127439411,-500.0,0.00010099,2]
[396911271,1765127439421,-500.0,0.00010099,2]
[396911273,1765127439430,-197.16531397,0.000101,2]
[396911370,1765127440568,-300.0,7.557e-05,2]
[396911371,1765127440577,-300.0,7.557e-05,2]
[396911372,1765127440586,-300.0,7.557e-05,2]
[396911373,1765127440595,-300.0,7.557e-05,2]
[396911374,1765127440605,-300.0,7.557e-05,2]
[396911375,1765127440614,-419.69703069,0.000101,2]
[396911376,1765127440622,-1110.35222039,0.000101,2]
[396911377,1765127440631,-1973.95950292,0.000101,2]
[396911378,1765127440640,-3084.31172331,0.000101,2]
[396911379,1765127440649,-4441.40888157,0.000101,2]
[396911380,1765127440657,-6039.20572672,0.000101,2]
[396911381,1765127440668,-270.93561805,0.00010152,2]
[396911382,1765127440677,-1083.74247219,0.00010152,2]
[396911383,1765127440686,-2438.42056243,0.00010152,2]
[396911384,1765127440695,-4334.96988877,0.00010152,2]
[396911385,1765127440704,-5168.1875836,0.00010242,2]
[396911386,1765127440713,-2333.6870325,0.00010242,2]
[396911387,1765127440721,-250.0,0.00010411,2]
[396911388,1765127440730,-399.31076779,0.00010517,2]
[396911389,1765127440739,-151.0,0.00010548,2]
[396911390,1765127440748,-170.51691579,0.00010631,2]
[396911391,1765127440757,-682.06766315,0.00010631,2]
[396911392,1765127440766,-1534.65224209,0.00010631,2]
[396911393,1765127440774,-2728.2706526,0.00010631,2]
[396911394,1765127440783,-4262.92289469,0.00010631,2]
[396911395,1765127440792,-302.005376,0.00010685,2]
[396911396,1765127440801,-302.005376,0.00010685,2]
[396911397,1765127440810,-603.7726543,0.00010685,2]
[396911398,1765127440819,-302.005376,0.00010685,2]
[396911399,1765127440827,-302.005376,0.00010685,2]
[396911400,1765127440836,-315.24135692,0.00010687,2]
[396911401,1765127440845,-1260.96542767,0.00010687,2]
[396911402,1765127440854,-2834.33504005,0.00010687,2]
[396911403,1765127440863,-744.79047293,0.00010706,2]
[396911404,1765127440872,-2000.0,0.00010914,2]
[396911405,1765127440881,-2000.0,0.00010923,2]
[396911406,1765127440890,-2000.0,0.00010932,2]
[396911407,1765127440899,-2000.0,0.0001094,2]
[396911408,1765127440907,-2000.0,0.00010949,2]
[396911409,1765127440916,-2000.0,0.00010958,2]
[396911410,1765127440924,-1900.47520574,0.00010958,2]
[396911411,1765127440933,-238.369618,0.00010958,2]
[396911412,1765127440941,-238.369618,0.00010958,2]
[396911413,1765127440950,-151.0,0.00010958,2]
[396911414,1765127440959,-151.0,0.00010958,2]
[396911415,1765127440968,-151.0,0.00010958,2]
[396911416,1765127440977,-233.828148,0.00010958,2]
[396911417,1765127440986,-228.631966,0.00010958,2]
[396911418,1765127440994,-250.0,0.00010958,2]
[396911419,1765127441003,-400.0,0.00010959,2]
[396911420,1765127441012,-500.0,0.00010959,2]
[396911421,1765127441021,-11722.4118922,0.00010959,2]
[396911422,1765127441030,-1798.786883,0.00010959,2]
[396911423,1765127441039,-1798.786883,0.00010959,2]
[396911424,1765127441049,-1798.786883,0.00010959,2]
[396911425,1765127441058,-1798.786883,0.00010959,2]
[396911426,1765127441067,-151.0,0.00010959,2]
[396911427,1765127441077,-151.0,0.00010959,2]
[396911428,1765127441086,-151.0,0.00010959,2]
[396911429,1765127441095,-167.005487,0.00010959,2]
[396911430,1765127441105,-212.454193,0.00010959,2]
[396911431,1765127441114,-212.454193,0.00010959,2]
[396911432,1765127441123,-212.454193,0.00010959,2]
[396911433,1765127441132,-212.454193,0.00010959,2]
[396911434,1765127441141,-625.76488453,0.00010959,2]
[396911435,1765127441150,-625.76488453,0.00010959,2]
[396911436,1765127441160,-625.76488453,0.00010959,2]
[396911437,1765127441169,-625.76488453,0.00010959,2]
[396911439,1765127441395,-625.76488453,0.00010959,2]
[396911440,1765127441407,-625.76488453,0.00010959,2]
[396911441,1765127441416,-625.76488453,0.00010959,2]
[396911442,1765127441425,-625.76488453,0.00010959,2]
[396911443,1765127441434,-625.76488453,0.00010959,2]
[396911444,1765127441443,-625.76488453,0.00010959,2]
[396911445,1765127441452,-625.76488453,0.00010959,2]
[396911446,1765127441462,-625.76488453,0.00010959,2]
[396911447,1765127441474,-625.76488453,0.00010959,2]
[396911448,1765127441483,-625.76488453,0.00010959,2]
[396911449,1765127441492,-625.76488453,0.00010959,2]
[396911450,1765127441502,-625.76488453,0.00010959,2]
[396911451,1765127441511,-625.76488453,0.00010959,2]
[396911452,1765127441521,-625.76488453,0.00010959,2]
[396911453,1765127441530,-625.76488453,0.00010959,2]
[396911454,1765127441540,-612.23409498,0.00010959,2]
[396911455,1765127441552,-625.76488453,0.00010959,2]
[396911456,1765127441561,-625.76488453,0.00010959,2]
[396911457,1765127441571,-1000.0,0.00011,2]
[396911458,1765127441580,-1000.0,0.00011,2]
[396911459,1765127441589,-1000.0,0.00011,2]
[396911460,1765127441598,-1000.0,0.00011,2]
[396911461,1765127441607,-1000.0,0.00011,2]
[396911462,1765127441616,-1000.0,0.00011,2]
[396911463,1765127441625,-1000.0,0.00011,2]
[396911464,1765127441635,-1000.0,0.00011,2]
[396911465,1765127441644,-1000.0,0.00011,2]
[396911466,1765127441653,-1000.0,0.00011,2]
[396911467,1765127441662,-496.790992,0.00011,2]
[396911468,1765127441672,-264.04400316,0.00011031,2]
[396911469,1765127441681,-475.2792057,0.00011031,2]
[396911470,1765127441690,-844.94081013,0.00011031,2]
[396911471,1765127441699,-151.0,0.00011096,2]
[396911472,1765127441708,-152.0,0.00011141,2]
[396911473,1765127441717,-334.0,0.00011141,2]
[396911474,1765127441726,-259.25,0.0001115,2]
[396911475,1765127441735,-250.0,0.0001115,2]
[396911476,1765127441744,-250.0,0.0001115,2]
[396911477,1765127441755,-250.0,0.0001115,2]
[396911478,1765127441763,-250.0,0.0001115,2]
[396911479,1765127441772,-250.0,0.0001115,2]
[396911480,1765127441781,-102.52353689,0.0001115,2]
[396911481,1765127441883,-147.47646311,0.0001115,2]
[396911482,1765127441893,-250.0,0.0001115,2]
[396911483,1765127441902,-360.88579214,0.0001115,2]
[396911484,1765127441911,-518.9661995,0.0001115,2]
[396911485,1765127441922,-1711.3491065,0.0001115,2]
[396911486,1765127441930,-500.0,0.0001115,2]
[396911487,1765127441939,-500.0,0.0001115,2]
[396911488,1765127441948,-500.0,0.0001115,2]
[396911489,1765127441957,-500.0,0.0001115,2]
[396911490,1765127441967,-500.0,0.0001115,2]
[396911491,1765127441976,-500.0,0.0001115,2]
[396911492,1765127441984,-500.0,0.0001115,2]
[396911493,1765127441993,-370.72374703,0.0001115,2]
[396911494,1765127442004,-129.27625297,0.0001115,2]
[396911495,1765127442013,-134.7102285,0.0001115,2]
[396911552,1765127443498,-300.0,7.557e-05,2]
[396911554,1765127443507,-300.0,7.557e-05,2]
[396911556,1765127443519,-300.0,7.557e-05,2]
[396911558,1765127443528,-300.0,7.557e-05,2]
[396911560,1765127443539,-300.0,7.557e-05,2]
[396911562,1765127443550,-365.2897715,0.0001115,2]
[396911564,1765127443559,-500.0,0.0001115,2]
[396911566,1765127443568,-500.0,0.0001115,2]
[396911568,1765127443579,-500.0,0.0001115,2]
[396911570,1765127443588,-280.36484026,0.0001115,2]
[396911572,1765127443598,-500.0,0.00011233,2]
[396911575,1765127443608,-168.28035629,0.0001127,2]
[396911577,1765127443618,-672.44830374,0.0001127,2]
[396911579,1765127443628,-119.17390322,0.00011372,2]
[396911581,1765127443639,-480.82609678,0.00011372,2]
[396911583,1765127443648,-177.45311007,0.00011432,2]
[396911585,1765127443657,-166.0,0.00011432,2]
[396911587,1765127443667,-166.0,0.00011432,2]
[396911589,1765127443676,-166.0,0.00011432,2]
[396911591,1765127443685,-162.0,0.00011432,2]
[396911593,1765127443695,-152.0,0.00011432,2]
[396911595,1765127443703,-166.0,0.00011432,2]
[396911597,1765127443713,-166.0,0.00011432,2]
[396911599,1765127443722,-162.0,0.00011432,2]
[396911601,1765127443731,-152.0,0.00011432,2]
[396911603,1765127443740,-166.0,0.00011432,2]
[396911605,1765127443749,-166.0,0.00011432,2]
[396911607,1765127443758,-162.0,0.00011432,2]
[396911609,1765127443768,-152.0,0.00011432,2]
[396911611,1765127443778,-166.0,0.00011432,2]
[396911613,1765127443787,-162.0,0.00011432,2]
[396911615,1765127443796,-172.0,0.00011432,2]
[396911617,1765127443805,-152.0,0.00011432,2]
[396911619,1765127443815,-166.0,0.00011432,2]
[396911621,1765127443825,-162.0,0.00011432,2]
[396911623,1765127443835,-152.0,0.00011432,2]
[396911625,1765127443844,-166.0,0.00011432,2]
[396911627,1765127443854,-162.0,0.00011432,2]
[396911629,1765127443863,-152.0,0.00011432,2]
[396911631,1765127443872,-166.0,0.00011432,2]
[396911633,1765127443882,-61.16077726,0.00011432,2]
[396911636,1765127443895,-106.46291813,0.00011432,2]
[396911638,1765127443905,-152.0,0.00011432,2]
[396911640,1765127443914,-172.0,0.00011432,2]
[396911642,1765127443923,-128.48377755,0.00011432,2]
[396911644,1765127443936,-23.51622245,0.00011432,2]
[396911646,1765127443945,-292.41853914,0.00011432,2]
[396911648,1765127443954,-334.0,0.00011432,2]
[396911650,1765127443963,-334.0,0.00011432,2]
[396911652,1765127443972,-152.0,0.00011432,2]
[396911654,1765127443982,-334.0,0.00011432,2]
[396911656,1765127443992,-334.0,0.00011432,2]
[396911658,1765127444001,-18.3223315,0.00011432,2]
[396911660,1765127444013,-133.6776685,0.00011432,2]
[396911662,1765127444023,-334.0,0.00011432,2]
[396911664,1765127444031,-152.0,0.00011432,2]
[396911666,1765127444040,-334.0,0.00011432,2]
[396911668,1765127444050,-92.64914816,0.00011432,2]
[396911671,1765127444061,-59.35085184,0.00011432,2]
[396911673,1765127444072,-334.0,0.00011432,2]
[396911675,1765127444081,-152.0,0.00011432,2]
[396911677,1765127444090,-284.18540038,0.00011432,2]
[396911679,1765127444105,-49.81459962,0.00011432,2]
[396911681,1765127444114,-152.0,0.00011432,2]
[396911683,1765127444123,-217.37007302,0.00011432,2]
[396911932,1765127446450,-116.62992698,0.00011432,2]
[396911934,1765127446459,-334.0,0.00011432,2]
[396911935,1765127446469,-152.0,0.00011432,2]
[396911937,1765127446482,-95.0867238,0.00011432,2]
[396919966,1765127582082,237.77,5.1e-05,2]
[396920344,1765127660149,237.98,5.1e-05,2]
[396920526,1765127702108,237.77,5.1e-05,2]
[396920543,1765127778775,237.98,5.1e-05,2]
[396920544,1765127823036,237.77,5.1e-05,2]
[396920546,1765127899165,237.98,5.1e-05,2]
[396920548,1765127942246,237.77,5.1e-05,2]
[396920550,1765128019697,237.98,5.1e-05,2]
[396921581,1765128062236,237.77,5.1e-05,2]
[396922771,1765128138418,237.98,5.1e-05,2]
[396922781,1765128182076,237.77,5.1e-05,2]
[396922796,1765128259196,237.98,5.1e-05,2]
[396922801,1765128302839,237.77,5.1e-05,2]
[396922802,1765128332236,-237.77,5.3e-05,2]
[396922803,1765128332258,-122.76544884,5.5e-05,2]
[396922811,1765128377844,199.5,5.1e-05,2]
[396922813,1765128423624,229.79,5.1e-05,2]
[396922814,1765128429101,-229.79,5.3e-05,2]
[396922815,1765128429125,-229.79,5.5e-05,2]
[396922816,1765128429146,-229.79,5.6e-05,2]
[396922817,1765128429168,-229.79,5.8e-05,2]
[396922818,1765128429189,-403.11165443,5.92e-05,2]
[396922819,1765128429210,-229.79,6e-05,2]
[396922820,1765128429231,-229.79,6.2e-05,2]
[396922821,1765128429252,-229.79,6.4e-05,2]
[396922822,1765128429272,-712.3518244,6.44e-05,2]
[396922823,1765128429292,-229.79,6.6e-05,2]
[396922824,1765128429313,-150.0,6.639e-05,2]
[396922825,1765128429334,-229.79,6.7e-05,2]
[396922826,1765128429356,-229.79,6.9e-05,2]
[396922827,1765128429379,-150.83,6.955e-05,2]
[396922828,1765128429399,-229.79,7.1e-05,2]
[396922829,1765128429419,-712.3518244,7.134e-05,2]
[396922830,1765128429441,-226.25,7.272e-05,2]